fUST/lending_fUST_20240919
["ID","MTS","AMOUNT","RATE_DAILY","PERIOD"]
[338574040,1726741844764,-500.0,0.00016438,2]
[338574041,1726741844773,-734.16,0.00016438,2]
[338574042,1726741844783,-500.0,0.00016438,2]
[338574043,1726741844793,-734.16,0.00016438,2]
[338574044,1726741844803,-500.0,0.00016438,2]
[338574045,1726741844812,-734.16,0.00016438,2]
[338574046,1726741844822,-500.0,0.00016438,2]
[338574047,1726741844831,-734.16,0.00016438,2]
[338574048,1726741844841,-500.0,0.00016438,2]
[338574049,1726741844851,-734.16,0.00016438,2]
[338574050,1726741844860,-500.0,0.00016438,2]
[338574051,1726741844870,-500.0,0.00016438,2]
[338574052,1726741844880,-734.16,0.00016438,2]
[338574053,1726741844889,-500.0,0.00016438,2]
[338574054,1726741844898,-734.16,0.00016438,2]
[338574055,1726741844907,-500.0,0.00016438,2]
[338574056,1726741844918,-734.16,0.00016438,2]
[338574057,1726741844927,-500.0,0.00016438,2]
[338574058,1726741844937,-734.16,0.00016438,2]
[338574059,1726741844948,-500.0,0.00016438,2]
[338574060,1726741844959,-734.16,0.00016438,2]
[338574061,1726741844968,-500.0,0.00016438,2]
[338574062,1726741844977,-734.16,0.00016438,2]
[338574063,1726741844987,-500.0,0.00016438,2]
[338574064,1726741844996,-734.16,0.00016438,2]
[338574065,1726741845006,-734.16,0.00016438,2]
[338574066,1726741845016,-734.16,0.00016438,2]
[338574067,1726741845025,-734.16,0.00016438,2]
[338574068,1726741845035,-734.31687186,0.00016438,2]
[338574069,1726741845044,-500.0,0.00016438,2]
[338574070,1726741845053,-500.0,0.00016438,2]
[338574071,1726741845063,-500.0,0.00016438,2]
[338574072,1726741845072,-504.95,0.00016438,2]
[338574073,1726741845082,-500.0,0.00016438,2]
[338574074,1726741845091,-509.480479,0.00016438,2]
[338574075,1726741845101,-500.0,0.00016438,2]
[338574076,1726741845110,-500.0,0.00016438,2]
[338574077,1726741845119,-509.480479,0.00016438,2]
[338574078,1726741845128,-500.0,0.00016438,2]
[338574079,1726741845137,-503.96153996,0.00016438,2]
[338574080,1726741845147,-500.0,0.00016438,2]
[338574081,1726741845156,-500.0,0.00016438,2]
[338574082,1726741845167,-427.88488568,0.00016438,2]
[338574084,1726741845177,-500.0,0.00016438,2]
[338574085,1726741845186,-509.5149322,0.00016438,2]
[338574087,1726741845195,-500.0,0.00016438,2]
[338574088,1726741845205,-500.0,0.00016438,2]
[338574089,1726741845215,-500.0,0.00016438,2]
[338574090,1726741845224,-500.0,0.00016438,2]
[338574091,1726741845234,-562.08,0.00016438,2]
[338574092,1726741845244,-500.0,0.00016438,2]
[338574093,1726741845254,-500.0,0.00016438,2]
[338574094,1726741845264,-500.0,0.00016438,2]
[338574095,1726741845273,-2080.917022,0.00016438,2]
[338574096,1726741845283,-500.0,0.00016438,2]
[338574097,1726741845292,-2080.917022,0.00016438,2]
[338574098,1726741845301,-1787.17,0.00016438,2]
[338574099,1726741845315,-500.0,0.00016438,2]
[338574100,1726741845324,-500.0,0.00016438,2]
[338574101,1726741845334,-500.0,0.00016438,2]
[338574102,1726741845343,-3769.21,0.00016438,2]
[338574103,1726741845354,-500.0,0.00016438,2]
[338574104,1726741845364,-500.0,0.00016438,2]
[338574105,1726741845374,-668.88,0.00016438,2]
[338574106,1726741845385,-500.0,0.00016438,2]
[338574107,1726741845395,-844.05,0.00016438,2]
[338574108,1726741845404,-500.0,0.00016438,2]
[338574109,1726741845414,-500.0,0.00016438,2]
[338574110,1726741845424,-500.0,0.00016438,2]
[338574111,1726741845434,-592.4,0.00016438,2]
[338574112,1726741845445,-500.0,0.00016438,2]
[338574113,1726741845456,-500.0,0.00016438,2]
[338574114,1726741845466,-500.0,0.00016438,2]
[338574115,1726741845476,-500.0,0.00016438,2]
[338574116,1726741845487,-500.0,0.00016438,2]
[338574117,1726741845496,-655.86,0.00016438,2]
[338574118,1726741845506,-894.18,0.00016438,2]
[338574119,1726741845516,-972.24,0.00016438,2]
[338574120,1726741845526,-151.0,0.00016438,2]
[338574121,1726741845537,-500.0,0.00016438,2]
[338574122,1726741845547,-151.0,0.00016438,2]
[338574123,1726741845557,-500.0,0.00016438,2]
[338574124,1726741845568,-500.0,0.00016438,2]
[338574126,1726741845579,-1656.88,0.00016438,2]
[338574128,1726741845588,-579.46,0.00016438,2]
[338574130,1726741845598,-500.0,0.00016438,2]
[338574132,1726741845608,-563.95,0.00016438,2]
[338574133,1726741845618,-500.0,0.00016438,2]
[338574135,1726741845627,-847.09,0.00016438,2]
[338574137,1726741845637,-846.84754,0.00016438,2]
[338574139,1726741845646,-558.17,0.00016438,2]
[338574141,1726741845656,-500.0,0.00016438,2]
[338574143,1726741845667,-846.84754,0.00016438,2]
[338574145,1726741845676,-500.0,0.00016438,2]
[338574147,1726741845686,-500.0,0.00016438,2]
[338574148,1726741845696,-500.0,0.00016438,2]
[338574150,1726741845706,-500.0,0.00016438,2]
[338574152,1726741845716,-500.0,0.00016438,2]
[338574154,1726741845726,-500.0,0.00016438,2]
[338574156,1726741845736,-500.0,0.00016438,2]
[338574158,1726741845746,-500.0,0.00016438,2]
[338574160,1726741845755,-500.0,0.00016438,2]
[338574161,1726741845764,-500.0,0.00016438,2]
[338574163,1726741845774,-500.0,0.00016438,2]
[338574165,1726741845783,-500.0,0.00016438,2]
[338574167,1726741845794,-500.0,0.00016438,2]
[338574169,1726741845803,-500.0,0.00016438,2]
[338574171,1726741845812,-3353.97,0.00016438,2]
[338574172,1726741845822,-926.37,0.00016438,2]
[338574174,1726741845831,-500.0,0.00016438,2]
[338574176,1726741845841,-916.46,0.00016438,2]
[338574178,1726741845850,-500.0,0.00016438,2]
[338574180,1726741845860,-549.98,0.00016438,2]
[338574182,1726741845870,-852.43,0.00016438,2]
[338574183,1726741845881,-499.07152592,0.00016438,2]
[338574185,1726741845890,-500.0,0.00016438,2]
[338574187,1726741845900,-1381.29,0.00016438,2]
[338574189,1726741845910,-500.0,0.00016438,2]
[338574191,1726741845922,-681.01,0.00016438,2]
[338574193,1726741845931,-500.0,0.00016438,2]
[338574195,1726741845942,-66423.35,0.00016438,2]
[338574197,1726741845952,-500.0,0.00016438,2]
[338574198,1726741845961,-500.0,0.00016438,2]
[338574200,1726741845971,-721.85,0.00016438,2]
[338574202,1726741845981,-1018.51,0.00016438,2]
[338574204,1726741845991,-500.0,0.00016438,2]
[338574206,1726741846001,-500.0,0.00016438,2]
[338574208,1726741846011,-500.0,0.00016438,2]
[338574210,1726741846020,-500.0,0.00016438,2]
[338574212,1726741846030,-500.0,0.00016438,2]
[338574213,1726741846039,-500.0,0.00016438,2]
[338574215,1726741846049,-7969.23,0.00016438,2]
[338574217,1726741846058,-500.0,0.00016438,2]
[338574219,1726741846068,-500.0,0.00016438,2]
[338574221,1726741846078,-500.71773299,0.00016438,2]
[338574223,1726741846087,-1444.82,0.00016438,2]
[338574225,1726741846098,-500.0,0.00016438,2]
[338574227,1726741846108,-849.76,0.00016438,2]
[338574229,1726741846119,-530.96,0.00016438,2]
[338574235,1726741846184,-500.0,0.00016438,2]
[338574237,1726741846194,-232.55147581,0.00016438,2]
[338574239,1726741846203,-500.0,0.00016438,2]
[338574241,1726741846213,-500.0,0.00016438,2]
[338574243,1726741846222,-500.0,0.00016438,2]
[338574245,1726741846231,-500.0,0.00016438,2]
[338574247,1726741846241,-500.0,0.00016438,2]
[338574248,1726741846250,-500.0,0.00016438,2]
[338574250,1726741846259,-918.27,0.00016438,2]
[338574252,1726741846269,-500.0,0.00016438,2]
[338574254,1726741846278,-500.68393457,0.00016473,2]
[338574256,1726741846288,-500.0,0.00016473,2]
[338574258,1726741846297,-500.0,0.00016473,2]
[338574260,1726741846309,-500.0,0.00016473,2]
[338574261,1726741846319,-500.0,0.00016473,2]
[338574263,1726741846328,-204.68820788,0.00016473,2]
[338574265,1726741846338,-500.20872257,0.00016473,2]
[338574267,1726741846347,-500.0,0.00016473,2]
[338574269,1726741846358,-500.0,0.00016473,2]
[338574271,1726741846367,-160.90163875,0.00016473,2]
[338574272,1726741846376,-500.0,0.00016473,2]
[338574274,1726741846387,-500.0,0.00016473,2]
[338574276,1726741846397,-500.0,0.00016473,2]
[338574278,1726741846406,-500.0,0.00016473,2]
[338574280,1726741846417,-500.0,0.00016473,2]
[338574282,1726741846426,-464.22077848,0.00016473,2]
[338574283,1726741846435,-500.0,0.00016473,2]
[338574285,1726741846445,-500.0,0.00016473,2]
[338574287,1726741846454,-500.0,0.00016473,2]
[338574289,1726741846463,-500.0,0.00016473,2]
[338574291,1726741846474,-503.76687854,0.00016473,2]
[338574293,1726741846484,-500.0,0.00016473,2]
[338574295,1726741846494,-500.0,0.00016473,2]
[338574298,1726741846504,-542.454776,0.00016513,2]
[338574299,1726741846515,-542.454776,0.00016513,2]
[338574302,1726741846526,-952.23775,0.00016513,2]
[338574304,1726741846537,-952.23775,0.00016513,2]
[338574305,1726741846547,-752.600615,0.00016513,2]
[338574306,1726741846557,-3609.099723,0.00016513,2]
[338574307,1726741846566,-752.600615,0.00016513,2]
[338574308,1726741846576,-3609.099723,0.00016513,2]
[338574309,1726741846586,-263.199991,0.00016513,2]
[338574310,1726741846595,-263.199991,0.00016513,2]
[338574311,1726741846604,-2117.12429314,0.000167,2]
[338574312,1726741846613,-500.0,0.00016701,2]
[338574313,1726741846624,-500.0,0.00016701,2]
[338574314,1726741846633,-500.0,0.00016701,2]
[338574315,1726741846643,-500.0,0.00016701,2]
[338574316,1726741846653,-500.0,0.00016701,2]
[338574317,1726741846664,-3207.41940152,0.0001671,2]
[338574318,1726741846676,-500.0,0.00016711,2]
[338574319,1726741846686,-500.0,0.00016711,2]
[338574320,1726741846698,-500.0,0.00016711,2]
[338574321,1726741846708,-500.0,0.00016711,2]
[338574322,1726741846717,-500.0,0.00016711,2]
[338574323,1726741846727,-235.52800243,0.00016711,2]
[338574324,1726741846737,-298.62128832,0.00016712,2]
[338574325,1726741846746,-319.64203003,0.00016712,2]
[338574326,1726741846756,-358.4850641,0.00016712,2]
[338574327,1726741846767,-500.0,0.00016712,2]
[338574328,1726741846777,-500.0,0.00016712,2]
[338574329,1726741846786,-500.0,0.00016712,2]
[338574330,1726741846796,-500.0,0.00016712,2]
[338574331,1726741846807,-500.0,0.00016712,2]
[338574332,1726741846816,-500.0,0.00016712,2]
[338574333,1726741846825,-500.0,0.00016712,2]
[338574334,1726741846835,-614.01,0.00016712,2]
[338574335,1726741846844,-500.0,0.00016712,2]
[338574336,1726741846854,-500.0,0.00016712,2]
[338574337,1726741846864,-1125.79,0.00016712,2]
[338574338,1726741846874,-500.0,0.00016712,2]
[338574339,1726741846884,-956.93,0.00016712,2]
[338574340,1726741846894,-500.0,0.00016712,2]
[338574341,1726741846903,-1123.64,0.00016712,2]
[338574342,1726741846915,-500.0,0.00016712,2]
[338574343,1726741846927,-500.0,0.00016712,2]
[338574344,1726741846936,-500.0,0.00016712,2]
[338574345,1726741846946,-1251.6,0.00016712,2]
[338574346,1726741846955,-559.76,0.00016712,2]
[338574347,1726741846964,-500.0,0.00016712,2]
[338574348,1726741846974,-830.69,0.00016712,2]
[338574349,1726741846984,-500.0,0.00016712,2]
[338574350,1726741846993,-594.78,0.00016712,2]
[338574351,1726741847002,-500.0,0.00016712,2]
[338574352,1726741847012,-500.0,0.00016712,2]
[338574353,1726741847022,-500.0,0.00016712,2]
[338574354,1726741847032,-500.0,0.00016712,2]
[338574355,1726741847041,-777.96,0.00016712,2]
[338574356,1726741847050,-586.15816598,0.00016712,2]
[338574357,1726741847060,-500.0,0.00016712,2]
[338574358,1726741847069,-500.0,0.00016712,2]
[338574359,1726741847079,-500.0,0.00016712,2]
[338574360,1726741847088,-500.0,0.00016712,2]
[338574361,1726741847099,-530.41,0.00016712,2]
[338574362,1726741847108,-1426.88,0.00016712,2]
[338574363,1726741847118,-500.0,0.00016712,2]
[338574364,1726741847128,-500.0,0.00016712,2]
[338574365,1726741847138,-500.0,0.00016712,2]
[338574366,1726741847147,-500.0,0.00016712,2]
[338574367,1726741847157,-500.0,0.00016712,2]
[338574368,1726741847169,-1299.46,0.00016712,2]
[338574369,1726741847179,-500.0,0.00016712,2]
[338574370,1726741847188,-500.0,0.00016712,2]
[338574371,1726741847198,-500.0,0.00016712,2]
[338574372,1726741847207,-500.0,0.00016712,2]
[338574373,1726741847217,-500.0,0.00016712,2]
[338574374,1726741847226,-500.0,0.00016712,2]
[338574375,1726741847236,-194.74104936,0.00016712,2]
[338574376,1726741847245,-207.7,0.00016712,2]
[338574377,1726741847255,-500.0,0.00016712,2]
[338574378,1726741847264,-524.74,0.00016712,2]
[338574379,1726741847273,-500.0,0.00016712,2]
[338574380,1726741847283,-837.47,0.00016712,2]
[338574381,1726741847292,-500.0,0.00016712,2]
[338574382,1726741847302,-1233.33,0.00016712,2]
[338574383,1726741847315,-500.0,0.00016712,2]
[338574384,1726741847324,-500.0,0.00016712,2]
[338574385,1726741847334,-658.62,0.00016712,2]
[338574386,1726741847343,-500.0,0.00016712,2]
[338574387,1726741847354,-500.0,0.00016712,2]
[338574388,1726741847363,-500.0,0.00016712,2]
[338574389,1726741847373,-671.94,0.00016712,2]
[338574390,1726741847383,-500.0,0.00016712,2]
[338574391,1726741847393,-500.0,0.00016712,2]
[338574392,1726741847402,-578.6430085,0.00016712,2]
[338574393,1726741847751,-49.4969915,0.00016712,2]
[338574394,1726741847761,-405.72680365,0.00016712,2]
[338574395,1726741847770,-5.80620485,0.00016712,2]
[338574396,1726741847782,-341.51697593,0.00016712,2]
[338574397,1726741847794,-152.67681922,0.00016712,2]
[338574398,1726741847804,-559.95,0.00016712,2]
[338574399,1726741847814,-500.0,0.00016712,2]
[338574400,1726741847823,-500.0,0.00016712,2]
[338574401,1726741847833,-500.0,0.00016712,2]
[338574402,1726741847843,-500.0,0.00016712,2]
[338574403,1726741847853,-500.0,0.00016712,2]
[338574404,1726741847862,-500.0,0.00016712,2]
[338574405,1726741847871,-457.02072356,0.00016712,2]
[338574406,1726741847884,-42.97927644,0.00016712,2]
[338574407,1726741847894,-841.34,0.00016712,2]
[338574408,1726741847903,-500.0,0.00016712,2]
[338574409,1726741847912,-500.0,0.00016712,2]
[338574410,1726741847922,-500.0,0.00016712,2]
[338574411,1726741847931,-337.24659837,0.00016712,2]
[338574412,1726741847943,-162.75340163,0.00016712,2]
[338574413,1726741847952,-500.0,0.00016712,2]
[338574414,1726741847961,-500.0,0.00016712,2]
[338574415,1726741847971,-500.0,0.00016712,2]
[338574416,1726741847980,-500.0,0.00016712,2]
[338574417,1726741847990,-500.0,0.00016712,2]
[338574418,1726741847999,-500.0,0.00016712,2]
[338574419,1726741848009,-500.0,0.00016712,2]
[338574420,1726741848019,-801.89,0.00016712,2]
[338574421,1726741848028,-500.0,0.00016712,2]
[338574422,1726741848038,-500.0,0.00016712,2]
[338574423,1726741848047,-1086.39,0.00016712,2]
[338574424,1726741848057,-737.84,0.00016712,2]
[338574425,1726741848066,-500.0,0.00016712,2]
[338574426,1726741848075,-726.59,0.00016712,2]
[338574427,1726741848085,-591.06106447,0.00016712,2]
[338574428,1726741848095,-500.0,0.00016712,2]
[338574429,1726741848105,-523.54520385,0.00016712,2]
[338574430,1726741848115,-500.0,0.00016712,2]
[338574431,1726741848125,-500.0,0.00016712,2]
[338574432,1726741848135,-500.0,0.00016712,2]
[338574433,1726741848144,-500.0,0.00016712,2]
[338574434,1726741848154,-500.0,0.00016712,2]
[338574435,1726741848163,-500.0,0.00016712,2]
[338574436,1726741848178,-500.0,0.00016712,2]
[338574437,1726741848191,-500.0,0.00016712,2]
[338574438,1726741848201,-500.0,0.00016712,2]
[338574439,1726741848211,-840.56,0.00016712,2]
[338574440,1726741848220,-500.0,0.00016712,2]
[338574441,1726741848230,-535.21,0.00016712,2]
[338574442,1726741848240,-161.59321696,0.00016712,2]
[338574443,1726741848249,-500.0,0.00016712,2]
[338574444,1726741848258,-737.97,0.00016712,2]
[338574445,1726741848267,-500.0,0.00016712,2]
[338574446,1726741848277,-500.0,0.00016712,2]
[338574447,1726741848287,-500.61754729,0.00016712,2]
[338574448,1726741848297,-500.0,0.00016712,2]
[338574449,1726741848312,-500.0,0.00016712,2]
[338574450,1726741848322,-500.0,0.00016712,2]
[338574451,1726741848332,-500.0,0.00016712,2]
[338574452,1726741848342,-657.13,0.00016712,2]
[338574453,1726741848353,-1488.61,0.00016712,2]
[338574454,1726741848362,-672.03,0.00016712,2]
[338574455,1726741848372,-500.0,0.00016712,2]
[338574456,1726741848382,-500.0,0.00016712,2]
[338574457,1726741848392,-500.0,0.00016712,2]
[338574458,1726741848403,-500.0,0.00016712,2]
[338574459,1726741848416,-500.0,0.00016712,2]
[338574460,1726741848425,-500.0,0.00016712,2]
[338574461,1726741848435,-1470.17738375,0.00016712,2]
[338574462,1726741848450,-257.94261625,0.00016712,2]
[338574463,1726741848459,-500.0,0.00016712,2]
[338574464,1726741848469,-677.57,0.00016712,2]
[338574465,1726741848479,-500.0,0.00016712,2]
[338574466,1726741848489,-500.0,0.00016712,2]
[338574467,1726741848498,-500.0,0.00016712,2]
[338574468,1726741848507,-500.0,0.00016712,2]
[338574469,1726741848517,-500.0,0.00016712,2]
[338574470,1726741848526,-500.0,0.00016712,2]
[338574471,1726741848535,-500.0,0.00016712,2]
[338574472,1726741848544,-500.0,0.00016712,2]
[338574473,1726741848553,-539.55,0.00016712,2]
[338574474,1726741848563,-500.0,0.00016712,2]
[338574475,1726741848572,-500.0,0.00016712,2]
[338574476,1726741848582,-500.0,0.00016712,2]
[338574477,1726741848591,-500.0,0.00016712,2]
[338574478,1726741848600,-500.0,0.00016712,2]
[338574479,1726741848610,-709.83,0.00016712,2]
[338574480,1726741848619,-500.0,0.00016712,2]
[338574481,1726741848629,-500.0,0.00016712,2]
[338574482,1726741848639,-500.0,0.00016712,2]
[338574483,1726741848649,-500.0,0.00016712,2]
[338574484,1726741848658,-500.0,0.00016712,2]
[338574485,1726741848672,-500.0,0.00016712,2]
[338574486,1726741848682,-851.49,0.00016712,2]
[338574487,1726741848691,-1911.82,0.00016712,2]
[338574488,1726741848702,-580.38745002,0.00016712,2]
[338574489,1726741848711,-500.0,0.00016712,2]
[338574490,1726741848721,-500.0,0.00016712,2]
[338574491,1726741848730,-500.0,0.00016712,2]
[338574492,1726741848739,-500.0,0.00016712,2]
[338574493,1726741848750,-500.0,0.00016712,2]
[338574494,1726741848759,-500.0,0.00016712,2]
[338574495,1726741848769,-500.0,0.00016712,2]
[338574496,1726741848780,-500.0,0.00016712,2]
[338574497,1726741848789,-500.0,0.00016712,2]
[338574498,1726741848800,-502.21287056,0.00016712,2]
[338574499,1726741848809,-1204.29,0.00016712,2]
[338574500,1726741848818,-500.0,0.00016712,2]
[338574501,1726741848828,-500.0,0.00016712,2]
[338574502,1726741848838,-500.0,0.00016712,2]
[338574503,1726741848848,-500.0,0.00016712,2]
[338574504,1726741848858,-1009.21,0.00016712,2]
[338574505,1726741848868,-799.57,0.00016712,2]
[338574506,1726741848877,-500.0,0.00016712,2]
[338574507,1726741848887,-613.87,0.00016712,2]
[338574508,1726741848896,-662.16,0.00016712,2]
[338574509,1726741848906,-500.68845628,0.00016712,2]
[338574510,1726741848917,-500.0,0.00016712,2]
[338574511,1726741848926,-687.02,0.00016712,2]
[338574512,1726741848935,-500.0,0.00016712,2]
[338574513,1726741848943,-500.90650127,0.00016712,2]
[338574514,1726741848953,-1105.851757,0.00016712,2]
[338574515,1726741848963,-500.0,0.00016712,2]
[338574516,1726741848973,-1105.851757,0.00016712,2]
[338574517,1726741848983,-500.0,0.00016712,2]
[338574518,1726741848993,-500.0,0.00016712,2]
[338574519,1726741849002,-500.0,0.00016712,2]
[338574520,1726741849012,-500.0,0.00016712,2]
[338574521,1726741849022,-646.66,0.00016712,2]
[338574522,1726741849031,-500.0,0.00016712,2]
[338574523,1726741849041,-500.16,0.00016712,2]
[338574524,1726741849050,-151.0,0.00016712,2]
[338574525,1726741849060,-500.0,0.00016712,2]
[338574526,1726741849069,-500.0,0.00016712,2]
[338574527,1726741849078,-500.0,0.00016712,2]
[338574528,1726741849087,-500.0,0.00016712,2]
[338574529,1726741849098,-780.97,0.00016712,2]
[338574530,1726741849107,-501.30842904,0.00016712,2]
[338574531,1726741849116,-500.0,0.00016712,2]
[338574532,1726741849126,-824.7,0.00016712,2]
[338574533,1726741849136,-1244.25,0.00016712,2]
[338574534,1726741849145,-215.15605426,0.00016712,2]
[338574535,1726741849155,-500.0,0.00016712,2]
[338574536,1726741849166,-1036.72,0.00016712,2]
[338574537,1726741849175,-500.0,0.00016712,2]
[338574538,1726741849185,-1711.5,0.00016712,2]
[338574539,1726741849194,-500.0,0.00016712,2]
[338574540,1726741849203,-500.0,0.00016712,2]
[338574541,1726741849212,-2402.24,0.00016712,2]
[338574542,1726741849222,-500.0,0.00016712,2]
[338574543,1726741849231,-830.89,0.00016712,2]
[338574544,1726741849240,-500.0,0.00016712,2]
[338574545,1726741849250,-151.0,0.00016712,2]
[338574546,1726741849260,-954.76,0.00016712,2]
[338574547,1726741849269,-500.0,0.00016712,2]
[338574548,1726741849278,-500.0,0.00016712,2]
[338574549,1726741849288,-151.0,0.00016712,2]
[338574550,1726741849297,-500.0,0.00016712,2]
[338574551,1726741849308,-1255.46,0.00016712,2]
[338574552,1726741849318,-803.72,0.00016712,2]
[338574553,1726741849328,-500.0,0.00016712,2]
[338574554,1726741849338,-1850.66,0.00016712,2]
[338574555,1726741849347,-500.0,0.00016712,2]
[338574556,1726741849356,-1209.65,0.00016712,2]
[338574557,1726741849365,-744.16,0.00016712,2]
[338574558,1726741849375,-500.0,0.00016712,2]
[338574559,1726741849386,-500.0,0.00016712,2]
[338574560,1726741849395,-60.6694454,0.00016712,2]
[338574561,1726741849623,-500.0,0.00016438,2]
[338574562,1726741849633,-500.0,0.00016473,2]
[338574563,1726741849643,-439.3305546,0.00016712,2]
[338574564,1726741849654,-748.78,0.00016712,2]
[338574565,1726741849663,-500.0,0.00016712,2]
[338574566,1726741849673,-500.0,0.00016712,2]
[338574567,1726741849682,-500.0,0.00016712,2]
[338574568,1726741849692,-500.0,0.00016712,2]
[338574569,1726741849703,-1605.84,0.00016712,2]
[338574570,1726741849712,-635.96,0.00016712,2]
[338574571,1726741849721,-616.74859558,0.00016712,2]
[338574572,1726741849732,-899.02,0.00016712,2]
[338574573,1726741849741,-151.0,0.00016712,2]
[338574574,1726741849751,-500.0,0.00016712,2]
[338574575,1726741849760,-500.0,0.00016712,2]
[338574576,1726741849770,-500.0,0.00016712,2]
[338574577,1726741849780,-937.89,0.00016712,2]
[338574578,1726741849789,-151.0,0.00016712,2]
[338574579,1726741849799,-500.0,0.00016712,2]
[338574580,1726741849809,-1176.26,0.00016712,2]
[338574581,1726741849818,-151.0,0.00016712,2]
[338574582,1726741849828,-500.0,0.00016712,2]
[338574583,1726741849838,-500.0,0.00016712,2]
[338574584,1726741849847,-151.0,0.00016712,2]
[338574585,1726741849858,-948.8,0.00016712,2]
[338574586,1726741849867,-500.0,0.00016712,2]
[338574587,1726741849877,-505.89,0.00016712,2]
[338574588,1726741849887,-861.44,0.00016712,2]
[338574589,1726741849896,-500.0,0.00016712,2]
[338574590,1726741849907,-500.0,0.00016712,2]
[338574591,1726741849918,-1343.7,0.00016712,2]
[338574592,1726741849929,-500.0,0.00016712,2]
[338574593,1726741850039,-500.0,0.00016712,2]
[338574594,1726741850049,-500.0,0.00016712,2]
[338574595,1726741850059,-1295.6,0.00016712,2]
[338574596,1726741850069,-500.0,0.00016712,2]
[338574597,1726741850078,-500.0,0.00016712,2]
[338574598,1726741850087,-500.0,0.00016712,2]
[338574599,1726741850096,-917.28,0.00016712,2]
[338574600,1726741850105,-500.0,0.00016712,2]
[338574601,1726741850115,-947.94,0.00016712,2]
[338574602,1726741850124,-500.0,0.00016712,2]
[338574603,1726741850134,-255.88240982,0.00016712,2]
[338574604,1726741850143,-500.0,0.00016712,2]
[338574605,1726741850153,-728.29,0.00016712,2]
[338574606,1726741850162,-779.74,0.00016712,2]
[338574607,1726741850172,-783.77,0.00016712,2]
[338574608,1726741850181,-500.0,0.00016712,2]
[338574609,1726741850193,-500.0,0.00016712,2]
[338574610,1726741850208,-500.0,0.00016712,2]
[338574611,1726741850218,-151.0,0.00016712,2]
[338574612,1726741850227,-1334.36,0.00016712,2]
[338574613,1726741850236,-502.02289673,0.00016712,2]
[338574614,1726741850245,-151.0,0.00016712,2]
[338574615,1726741850255,-625.34922717,0.00016712,2]
[338574616,1726741850264,-500.0,0.00016712,2]
[338574617,1726741850278,-151.0,0.00016712,2]
[338574618,1726741850288,-546.04,0.00016712,2]
[338574619,1726741850298,-500.0,0.00016712,2]
[338574620,1726741850310,-500.0,0.00016712,2]
[338574621,1726741850320,-849.75,0.00016712,2]
[338574622,1726741850329,-155.520095,0.00016712,2]
[338574623,1726741850339,-500.0,0.00016712,2]
[338574624,1726741850348,-880.58,0.00016712,2]
[338574625,1726741850358,-2014.37,0.00016712,2]
[338574626,1726741850368,-500.0,0.00016712,2]
[338574627,1726741850377,-1330.29,0.00016712,2]
[338574628,1726741850388,-155.520095,0.00016712,2]